[Event "*** Titled Tuesday 3|2 Blitz"]
[Site "Chess.com"]
[Date "2016.06.07"]
[Round "5"]
[White "bugsbunny444"]
[Black "rookoco"]
[Result "1-0"]
[WhiteElo "2371"]
[BlackElo "2447"]
[TimeControl "180+2"]
[EndTime "12:00:09 PDT"]
[Termination "bugsbunny444 won by checkmate"]

1. Nf3 {[%clk 0:03:01.9]} 1... h5 {[%clk 0:03:01.9]} 2. e4 {[%clk 0:02:56.9]}
2... h4 {[%clk 0:03:02.3]} 3. h3 {[%clk 0:02:56.8]} 3... e6 {[%clk 0:03:03.3]}
4. d4 {[%clk 0:02:57.2]} 4... Be7 {[%clk 0:03:04.3]} 5. Nc3 {[%clk 0:02:53.9]}
5... d5 {[%clk 0:03:05.3]} 6. Bd3 {[%clk 0:02:40.6]} 6... Nc6 {[%clk 0:03:05.3]}
7. O-O {[%clk 0:02:38.7]} 7... Nb4 {[%clk 0:03:05]} 8. Be2 {[%clk 0:02:25.2]}
8... dxe4 {[%clk 0:03:05.5]} 9. Nxe4 {[%clk 0:02:26.3]} 9... Nf6 {[%clk
0:03:06.5]} 10. Neg5 {[%clk 0:02:02.8]} 10... Nh7 {[%clk 0:02:59.1]} 11. Nxh7
{[%clk 0:01:54]} 11... Rxh7 {[%clk 0:02:59.7]} 12. a3 {[%clk 0:01:39.7]} 12...
Nc6 {[%clk 0:02:59.7]} 13. Bf4 {[%clk 0:01:29.3]} 13... Bf6 {[%clk 0:02:59.9]}
14. Qd3 {[%clk 0:01:22.5]} 14... Rh8 {[%clk 0:02:59.7]} 15. Rad1 {[%clk
0:01:17.6]} 15... g5 {[%clk 0:02:56.9]} 16. Be3 {[%clk 0:01:02.3]} 16... Qd6
{[%clk 0:02:53.6]} 17. Nxg5 {[%clk 0:00:43.6]} 17... Qe7 {[%clk 0:02:44.4]} 18.
Ne4 {[%clk 0:00:42.9]} 18... Bd7 {[%clk 0:02:45.1]} 19. Nc5 {[%clk 0:00:20.6]}
19... O-O-O {[%clk 0:02:45.1]} 20. Qb5 {[%clk 0:00:21.7]} 20... Na5 {[%clk
0:02:21.7]} 21. Qxa5 {[%clk 0:00:22.3]} 21... Kb8 {[%clk 0:02:22.2]} 22. Bf3
{[%clk 0:00:15.4]} 22... Bc8 {[%clk 0:02:21.7]} 23. Qb4 {[%clk 0:00:11.2]} 23...
b6 {[%clk 0:02:22.6]} 24. Ne4 {[%clk 0:00:11.5]} 24... Qxb4 {[%clk 0:02:23.1]}
25. axb4 {[%clk 0:00:12.2]} 25... Be7 {[%clk 0:02:25]} 26. c3 {[%clk 0:00:12.8]}
26... Rhg8 {[%clk 0:02:24.9]} 27. Kh1 {[%clk 0:00:12.5]} 27... Bb7 {[%clk
0:02:26.3]} 28. Nd2 {[%clk 0:00:13.3]} 28... Ba6 {[%clk 0:02:26.8]} 29. Rfe1
{[%clk 0:00:13.9]} 29... Bd6 {[%clk 0:02:27.6]} 30. Ra1 {[%clk 0:00:11.8]} 30...
Bc8 {[%clk 0:02:26.9]} 31. Ra3 {[%clk 0:00:08.5]} 31... a6 {[%clk 0:02:27.4]}
32. Raa1 {[%clk 0:00:09]} 32... f5 {[%clk 0:02:26.7]} 33. Nc4 {[%clk 0:00:08.8]}
33... Bd7 {[%clk 0:02:27.5]} 34. Nxd6 {[%clk 0:00:08.8]} 34... cxd6 {[%clk
0:02:28.5]} 35. Rxa6 {[%clk 0:00:09.8]} 35... Kc7 {[%clk 0:02:30]} 36. Ra7+
{[%clk 0:00:09]} 36... Kc8 {[%clk 0:02:31.4]} 37. Rea1 {[%clk 0:00:08.2]} 37...
d5 {[%clk 0:02:32.4]} 38. Bf4 {[%clk 0:00:07.1]} 38... Rde8 {[%clk 0:02:30.7]}
39. Rc7+ {[%clk 0:00:07.8]} 39... Kd8 {[%clk 0:02:31.6]} 40. Raa7 {[%clk
0:00:07.3]} 40... Bc8 {[%clk 0:02:31.2]} 41. Be5 {[%clk 0:00:06]} 41... Ref8
{[%clk 0:02:31.5]} 42. Rc6 {[%clk 0:00:05.4]} 42... b5 {[%clk 0:02:30.3]} 43.
Rcc7 {[%clk 0:00:05.3]} 43... Rg6 {[%clk 0:02:30.5]} 44. Ra8 {[%clk 0:00:06]}
44... Ke8 {[%clk 0:02:29.9]} 45. Raxc8# {[%clk 0:00:06.1]} 1-0

[Event "*** Titled Tuesday 3|2 Blitz"]
[Site "Chess.com"]
[Date "2016.06.07"]
[Round "5"]
[White "AleksandrKholin"]
[Black "Makalexa"]
[Result "1/2-1/2"]
[WhiteElo "2128"]
[BlackElo "2153"]
[TimeControl "180+2"]
[EndTime "12:00:14 PDT"]
[Termination "Game drawn by repetition"]

1. d4 {[%clk 0:03:01.9]} 1... Nf6 {[%clk 0:02:49]} 2. c4 {[%clk 0:03:01.4]} 2...
c5 {[%clk 0:02:49.5]} 3. Nf3 {[%clk 0:03:01]} 3... cxd4 {[%clk 0:02:49.6]} 4.
Nxd4 {[%clk 0:03:02.3]} 4... e5 {[%clk 0:02:50.9]} 5. Nb5 {[%clk 0:03:01.1]}
5... d5 {[%clk 0:02:52.5]} 6. cxd5 {[%clk 0:03:01.5]} 6... Bc5 {[%clk
0:02:53.6]} 7. N5c3 {[%clk 0:02:56.9]} 7... O-O {[%clk 0:02:53]} 8. e3 {[%clk
0:02:57.4]} 8... Re8 {[%clk 0:02:53.9]} 9. Be2 {[%clk 0:02:57.2]} 9... e4 {[%clk
0:02:55.1]} 10. Na3 {[%clk 0:02:50.5]} 10... Nbd7 {[%clk 0:02:53.9]} 11. Nc4
{[%clk 0:02:42.4]} 11... Ne5 {[%clk 0:02:52.3]} 12. O-O {[%clk 0:02:34.2]} 12...
a6 {[%clk 0:02:38.5]} 13. a4 {[%clk 0:02:32.8]} 13... Nxc4 {[%clk 0:02:35.2]}
14. Bxc4 {[%clk 0:02:32.1]} 14... Qd6 {[%clk 0:02:37.1]} 15. Re1 {[%clk
0:02:20.4]} 15... Bg4 {[%clk 0:02:37]} 16. Qb3 {[%clk 0:02:18.4]} 16... Re7
{[%clk 0:02:32.4]} 17. Bd2 {[%clk 0:02:08.3]} 17... Rae8 {[%clk 0:02:31.7]} 18.
a5 {[%clk 0:02:07.2]} 18... Bc8 {[%clk 0:02:24.2]} 19. Na4 {[%clk 0:02:06.5]}
19... Ng4 {[%clk 0:02:23.4]} 20. g3 {[%clk 0:02:01.2]} 20... Qh6 {[%clk
0:02:19.5]} 21. h4 {[%clk 0:02:00.7]} 21... Bd6 {[%clk 0:02:18.7]} 22. Qb6
{[%clk 0:01:30.6]} 22... Ne5 {[%clk 0:02:16.9]} 23. Be2 {[%clk 0:01:27.6]} 23...
Nd7 {[%clk 0:02:05.9]} 24. Qb3 {[%clk 0:01:20.6]} 24... Ne5 {[%clk 0:02:00.2]}
25. Bb4 {[%clk 0:01:18]} 25... Bg4 {[%clk 0:01:51.7]} 26. Bxg4 {[%clk
0:01:14.4]} 26... Nxg4 {[%clk 0:01:51.4]} 27. Bxd6 {[%clk 0:01:14.9]} 27... Qxd6
{[%clk 0:01:52.2]} 28. Nb6 {[%clk 0:01:08.3]} 28... Qf6 {[%clk 0:01:51.5]} 29.
Qc2 {[%clk 0:01:05.2]} 29... Re5 {[%clk 0:01:50.6]} 30. Nd7 {[%clk 0:00:59.1]}
30... Qf5 {[%clk 0:01:34.3]} 31. Nxe5 {[%clk 0:00:59.9]} 31... Nxe5 {[%clk
0:01:35.1]} 32. Kg2 {[%clk 0:00:57.9]} 32... Qf3+ {[%clk 0:01:32.8]} 33. Kg1
{[%clk 0:00:58]} 33... Qf5 {[%clk 0:01:29.8]} 34. Kg2 {[%clk 0:00:58.3]} 34...
Qf3+ {[%clk 0:01:30.2]} 35. Kg1 {[%clk 0:00:58.4]} 35... Qg4 {[%clk 0:01:28.4]}
36. Kg2 {[%clk 0:00:57.8]} 36... Qf3+ {[%clk 0:01:21]} 37. Kg1 {[%clk
0:00:58.2]} 37... Qg4 {[%clk 0:01:04.9]} 38. Kg2 {[%clk 0:00:57.8]} 38... Qf3+
{[%clk 0:01:05.8]} 1/2-1/2

[Event "*** Titled Tuesday 3|2 Blitz"]
[Site "Chess.com"]
[Date "2016.06.07"]
[Round "5"]
[White "Aguiar94"]
[Black "WanderingPuppet"]
[Result "0-1"]
[WhiteElo "2331"]
[BlackElo "2276"]
[TimeControl "180+2"]
[EndTime "12:00:31 PDT"]
[Termination "WanderingPuppet won on time"]

1. e4 {[%clk 0:03:01.9]} 1... c5 {[%clk 0:03:00.5]} 2. Nf3 {[%clk 0:03:02.1]}
2... d6 {[%clk 0:03:02]} 3. d4 {[%clk 0:03:03.5]} 3... cxd4 {[%clk 0:03:03.9]}
4. Nxd4 {[%clk 0:03:05.3]} 4... Nf6 {[%clk 0:03:05.5]} 5. Nc3 {[%clk 0:03:06.7]}
5... a6 {[%clk 0:03:07.1]} 6. h3 {[%clk 0:03:06.7]} 6... e6 {[%clk 0:03:08.6]}
7. g4 {[%clk 0:03:05.5]} 7... Be7 {[%clk 0:03:08.9]} 8. Bg2 {[%clk 0:03:06.1]}
8... Nfd7 {[%clk 0:03:09.1]} 9. O-O {[%clk 0:02:58.5]} 9... Nc6 {[%clk
0:03:10.5]} 10. Be3 {[%clk 0:02:58.3]} 10... Nxd4 {[%clk 0:03:10.5]} 11. Qxd4
{[%clk 0:02:56.3]} 11... O-O {[%clk 0:03:11]} 12. f4 {[%clk 0:02:54]} 12... b5
{[%clk 0:03:11.5]} 13. g5 {[%clk 0:02:46.8]} 13... Bb7 {[%clk 0:02:58]} 14. h4
{[%clk 0:02:46.2]} 14... Rc8 {[%clk 0:02:58]} 15. a3 {[%clk 0:02:44.2]} 15...
Rc4 {[%clk 0:02:52.6]} 16. Qd3 {[%clk 0:02:43.7]} 16... Nc5 {[%clk 0:02:47.2]}
17. Bxc5 {[%clk 0:02:32]} 17... Rxc5 {[%clk 0:02:49.1]} 18. f5 {[%clk
0:02:30.8]} 18... exf5 {[%clk 0:02:28.4]} 19. Rxf5 {[%clk 0:02:14]} 19... Rxf5
{[%clk 0:02:22.5]} 20. exf5 {[%clk 0:02:15.9]} 20... Bxg2 {[%clk 0:02:16.5]} 21.
Kxg2 {[%clk 0:02:17.8]} 21... Bxg5 {[%clk 0:01:59.2]} 22. hxg5 {[%clk
0:02:15.5]} 22... Qxg5+ {[%clk 0:02:01.1]} 23. Kf3 {[%clk 0:01:51.5]} 23... Re8
{[%clk 0:01:55.3]} 24. Rh1 {[%clk 0:01:46]} 24... Re5 {[%clk 0:01:44.6]} 25. b4
{[%clk 0:01:10]} 25... h6 {[%clk 0:01:28.5]} 26. Kf2 {[%clk 0:01:04]} 26... Qf4+
{[%clk 0:01:04.8]} 27. Kg2 {[%clk 0:00:04.9]} 27... Re3 {[%clk 0:01:00.1]} 28.
Nd5 {[%clk 0:00:02.8]} 28... Qg3+ {[%clk 0:00:59.1]} 0-1

[Event "*** Titled Tuesday 3|2 Blitz"]
[Site "Chess.com"]
[Date "2016.06.07"]
[Round "5"]
[White "Usurpov"]
[Black "Zazuliak"]
[Result "0-1"]
[WhiteElo "2343"]
[BlackElo "2360"]
[TimeControl "180+2"]
[EndTime "12:00:39 PDT"]
[Termination "Zazuliak won by resignation"]

1. e4 {[%clk 0:03:01.9]} 1... c5 {[%clk 0:02:59.8]} 2. Nf3 {[%clk 0:03:01.8]}
2... g6 {[%clk 0:03:00.5]} 3. d4 {[%clk 0:02:58.8]} 3... cxd4 {[%clk 0:03:01.5]}
4. Nxd4 {[%clk 0:03:00.7]} 4... Bg7 {[%clk 0:03:02.2]} 5. c4 {[%clk 0:03:01.3]}
5... Nc6 {[%clk 0:03:03.3]} 6. Be3 {[%clk 0:03:01.2]} 6... d6 {[%clk 0:03:03.9]}
7. Nc3 {[%clk 0:03:00.1]} 7... Nf6 {[%clk 0:03:04.9]} 8. Be2 {[%clk 0:03:01.3]}
8... O-O {[%clk 0:03:05.5]} 9. Qd2 {[%clk 0:03:02.2]} 9... Bd7 {[%clk
0:03:06.6]} 10. O-O {[%clk 0:03:00.9]} 10... Nxd4 {[%clk 0:03:07.4]} 11. Bxd4
{[%clk 0:02:57.9]} 11... Bc6 {[%clk 0:03:08.4]} 12. f3 {[%clk 0:02:56.6]} 12...
a5 {[%clk 0:03:09.1]} 13. b3 {[%clk 0:02:50.7]} 13... Nd7 {[%clk 0:03:09.4]} 14.
Be3 {[%clk 0:02:51.5]} 14... Nc5 {[%clk 0:03:10.1]} 15. Rab1 {[%clk 0:02:47.2]}
15... Qb6 {[%clk 0:03:10.5]} 16. Rfc1 {[%clk 0:02:34]} 16... Rfc8 {[%clk
0:03:10.1]} 17. Rc2 {[%clk 0:02:26.7]} 17... Qd8 {[%clk 0:03:08.9]} 18. Bf1
{[%clk 0:02:23.1]} 18... h5 {[%clk 0:03:08.6]} 19. a3 {[%clk 0:02:21.2]} 19...
Kh7 {[%clk 0:03:07.4]} 20. b4 {[%clk 0:02:12.2]} 20... axb4 {[%clk 0:03:07.7]}
21. axb4 {[%clk 0:02:12.1]} 21... Na4 {[%clk 0:02:59.4]} 22. Nd5 {[%clk
0:01:38.6]} 22... e6 {[%clk 0:02:58.9]} 23. Nf4 {[%clk 0:01:30]} 23... Qf6
{[%clk 0:02:30.1]} 24. b5 {[%clk 0:01:09.2]} 24... Be8 {[%clk 0:02:29.6]} 25.
Qxd6 {[%clk 0:01:06.2]} 25... Nc3 {[%clk 0:01:42.1]} 26. Re1 {[%clk 0:00:35.6]}
26... Nxb5 {[%clk 0:01:34]} 27. Qb4 {[%clk 0:00:27.1]} 27... Nd4 {[%clk
0:01:33.4]} 28. Rd2 {[%clk 0:00:18.7]} 28... Nc6 {[%clk 0:01:33.5]} 29. Qxb7
{[%clk 0:00:14]} 29... Bh6 {[%clk 0:01:25.4]} 30. g3 {[%clk 0:00:12.2]} 30...
Ne5 {[%clk 0:01:20.1]} 31. Kg2 {[%clk 0:00:11.3]} 31... g5 {[%clk 0:01:17]} 32.
Qb2 {[%clk 0:00:04.9]} 32... gxf4 {[%clk 0:01:15]} 33. gxf4 {[%clk 0:00:06.8]}
33... Bxf4 {[%clk 0:01:15.2]} 0-1

[Event "*** Titled Tuesday 3|2 Blitz"]
[Site "Chess.com"]
[Date "2016.06.07"]
[Round "5"]
[White "Boorchess"]
[Black "annakantane"]
[Result "0-1"]
[WhiteElo "2347"]
[BlackElo "2233"]
[TimeControl "180+2"]
[EndTime "12:00:42 PDT"]
[Termination "annakantane won by resignation"]

1. d4 {[%clk 0:02:56]} 1... Nf6 {[%clk 0:03:00]} 2. c4 {[%clk 0:02:56.9]} 2...
g6 {[%clk 0:02:53]} 3. Nc3 {[%clk 0:02:57.6]} 3... Bg7 {[%clk 0:02:51]} 4. e4
{[%clk 0:02:58.7]} 4... d6 {[%clk 0:02:50.4]} 5. f4 {[%clk 0:02:59.6]} 5... O-O
{[%clk 0:02:50.7]} 6. Nf3 {[%clk 0:03:00.7]} 6... c5 {[%clk 0:02:52.4]} 7. d5
{[%clk 0:03:01.5]} 7... e6 {[%clk 0:02:53]} 8. dxe6 {[%clk 0:03:02.7]} 8... Bxe6
{[%clk 0:02:51.7]} 9. Bd3 {[%clk 0:03:04.6]} 9... Nc6 {[%clk 0:02:51.1]} 10. O-O
{[%clk 0:03:05.6]} 10... Bg4 {[%clk 0:02:51.3]} 11. h3 {[%clk 0:03:05.8]} 11...
Bxf3 {[%clk 0:02:51.7]} 12. Qxf3 {[%clk 0:03:06.5]} 12... Nd4 {[%clk 0:02:43.5]}
13. Qf2 {[%clk 0:03:07.6]} 13... a6 {[%clk 0:02:28.2]} 14. f5 {[%clk 0:03:07.5]}
14... Nd7 {[%clk 0:02:20.5]} 15. Nd5 {[%clk 0:03:02]} 15... Ne5 {[%clk
0:02:01.3]} 16. Bb1 {[%clk 0:03:01.3]} 16... Re8 {[%clk 0:01:46]} 17. b3 {[%clk
0:02:57.2]} 17... b5 {[%clk 0:01:36.4]} 18. f6 {[%clk 0:02:38.4]} 18... Bf8
{[%clk 0:01:36.4]} 19. Ne3 {[%clk 0:02:31.8]} 19... bxc4 {[%clk 0:01:36.4]} 20.
Nxc4 {[%clk 0:02:31.7]} 20... Nxc4 {[%clk 0:01:37.1]} 21. bxc4 {[%clk
0:02:32.7]} 21... Rb8 {[%clk 0:01:31.5]} 22. Bd3 {[%clk 0:02:32.2]} 22... Qd7
{[%clk 0:01:21.4]} 23. Be3 {[%clk 0:02:28.9]} 23... Nc6 {[%clk 0:01:20.2]} 24.
Rab1 {[%clk 0:02:29.1]} 24... Ne5 {[%clk 0:01:21.1]} 25. Be2 {[%clk 0:02:29.2]}
25... h5 {[%clk 0:01:21.3]} 26. Rfd1 {[%clk 0:02:27.5]} 26... Qe6 {[%clk
0:01:21.2]} 27. Qf1 {[%clk 0:02:15.5]} 27... Kh7 {[%clk 0:01:16.2]} 28. Bf4
{[%clk 0:02:13.6]} 28... Bh6 {[%clk 0:01:14.5]} 29. Bxh6 {[%clk 0:02:10.3]}
29... Kxh6 {[%clk 0:01:15.5]} 30. Rb3 {[%clk 0:02:03.8]} 30... Kh7 {[%clk
0:01:08.6]} 31. Qf4 {[%clk 0:02:01.5]} 31... Rxb3 {[%clk 0:01:06.3]} 32. axb3
{[%clk 0:02:01.9]} 32... Rb8 {[%clk 0:01:07.9]} 33. Rb1 {[%clk 0:01:56.6]} 33...
Nd7 {[%clk 0:01:03.1]} 34. g4 {[%clk 0:01:57.3]} 34... Qxf6 {[%clk 0:01:04.1]}
35. Qd2 {[%clk 0:01:34.3]} 35... hxg4 {[%clk 0:00:49.7]} 36. Bxg4 {[%clk
0:01:32.4]} 36... Ne5 {[%clk 0:00:48.7]} 37. Rf1 {[%clk 0:01:33.3]} 37... Qe7
{[%clk 0:00:39.2]} 38. Bd1 {[%clk 0:01:27.3]} 38... Kg7 {[%clk 0:00:39.8]} 39.
Qf4 {[%clk 0:01:26.3]} 39... Rh8 {[%clk 0:00:40.7]} 40. Kg2 {[%clk 0:01:27.5]}
40... Rh4 {[%clk 0:00:40.7]} 41. Qg3 {[%clk 0:01:28.8]} 41... Rxe4 {[%clk
0:00:40.6]} 0-1

[Event "*** Titled Tuesday 3|2 Blitz"]
[Site "Chess.com"]
[Date "2016.06.07"]
[Round "5"]
[White "Bigfish1995"]
[Black "Imre91"]
[Result "1-0"]
[WhiteElo "2617"]
[BlackElo "2560"]
[TimeControl "180+2"]
[EndTime "12:00:48 PDT"]
[Termination "Bigfish1995 won by checkmate"]

1. e4 {[%clk 0:03:01.9]} 1... e6 {[%clk 0:03:00.3]} 2. d4 {[%clk 0:03:00.7]}
2... d5 {[%clk 0:03:00.9]} 3. Nd2 {[%clk 0:03:02.4]} 3... Nc6 {[%clk 0:03:01.2]}
4. Ngf3 {[%clk 0:03:02.9]} 4... Nf6 {[%clk 0:03:01]} 5. e5 {[%clk 0:03:02.2]}
5... Nd7 {[%clk 0:03:01.7]} 6. Be2 {[%clk 0:03:03.4]} 6... f6 {[%clk 0:02:56.3]}
7. exf6 {[%clk 0:03:03.9]} 7... Nxf6 {[%clk 0:02:58.2]} 8. Nf1 {[%clk
0:03:04.4]} 8... Bd6 {[%clk 0:02:59.6]} 9. Ng3 {[%clk 0:03:02.1]} 9... O-O
{[%clk 0:02:59.9]} 10. O-O {[%clk 0:03:03.7]} 10... e5 {[%clk 0:03:00.9]} 11.
dxe5 {[%clk 0:03:01]} 11... Nxe5 {[%clk 0:03:02.8]} 12. Nxe5 {[%clk 0:02:51.2]}
12... Bxe5 {[%clk 0:03:02.9]} 13. c3 {[%clk 0:02:48.9]} 13... c5 {[%clk
0:03:01.5]} 14. Be3 {[%clk 0:02:45.5]} 14... b6 {[%clk 0:03:02.4]} 15. Qd2
{[%clk 0:02:42.4]} 15... Bb7 {[%clk 0:03:00.8]} 16. Rad1 {[%clk 0:02:43.4]}
16... Qd7 {[%clk 0:02:52.7]} 17. Rfe1 {[%clk 0:02:36.7]} 17... Rae8 {[%clk
0:02:50]} 18. f3 {[%clk 0:02:32.6]} 18... Qc7 {[%clk 0:02:48.5]} 19. Bb5 {[%clk
0:02:27.8]} 19... Rd8 {[%clk 0:02:43.3]} 20. Bf2 {[%clk 0:02:12.2]} 20... a6
{[%clk 0:02:33.8]} 21. Ba4 {[%clk 0:02:08.3]} 21... Kh8 {[%clk 0:02:28.2]} 22.
Qg5 {[%clk 0:02:02.8]} 22... Bf4 {[%clk 0:02:18.3]} 23. Qh4 {[%clk 0:02:03.6]}
23... g5 {[%clk 0:02:09.8]} 24. Qh6 {[%clk 0:01:58.7]} 24... g4 {[%clk
0:02:10.4]} 25. Qh4 {[%clk 0:01:58.8]} 25... gxf3 {[%clk 0:02:11.1]} 26. Re6
{[%clk 0:01:52.8]} 26... Ng8 {[%clk 0:01:54.4]} 27. Nh5 {[%clk 0:01:36.4]} 27...
Bd6 {[%clk 0:01:18.1]} 28. Rde1 {[%clk 0:01:02.6]} 28... d4 {[%clk 0:01:09.2]}
29. Rxd6 {[%clk 0:00:49.2]} 29... Qxd6 {[%clk 0:01:01]} 30. Bg3 {[%clk
0:00:49.4]} 30... f2+ {[%clk 0:01:02.1]} 31. Bxf2 {[%clk 0:00:50.6]} 31... Rxf2
{[%clk 0:00:53.8]} 32. Qxf2 {[%clk 0:00:44.6]} 32... d3 {[%clk 0:00:52]} 33. Qf7
{[%clk 0:00:42.1]} 33... Bd5 {[%clk 0:00:38.2]} 34. Qg7# {[%clk 0:00:42.7]} 1-0

[Event "*** Titled Tuesday 3|2 Blitz"]
[Site "Chess.com"]
[Date "2016.06.07"]
[Round "5"]
[White "Rating-Schmating"]
[Black "Philofive"]
[Result "0-1"]
[WhiteElo "2191"]
[BlackElo "2344"]
[TimeControl "180+2"]
[EndTime "12:00:52 PDT"]
[Termination "Philofive won by checkmate"]

1. e4 {[%clk 0:03:01.9]} 1... e6 {[%clk 0:03:00.7]} 2. d4 {[%clk 0:03:01.9]}
2... d5 {[%clk 0:03:01.3]} 3. Nd2 {[%clk 0:03:01.6]} 3... Nf6 {[%clk 0:03:01.6]}
4. Bd3 {[%clk 0:03:01.2]} 4... c5 {[%clk 0:03:01.8]} 5. exd5 {[%clk 0:02:58.3]}
5... Nxd5 {[%clk 0:03:02]} 6. Ngf3 {[%clk 0:02:57.1]} 6... Nc6 {[%clk
0:03:02.2]} 7. dxc5 {[%clk 0:02:57.2]} 7... Bxc5 {[%clk 0:03:01.3]} 8. O-O
{[%clk 0:02:57.2]} 8... O-O {[%clk 0:03:00.9]} 9. Ne4 {[%clk 0:02:56.4]} 9...
Be7 {[%clk 0:02:59.2]} 10. Qe2 {[%clk 0:02:55.8]} 10... a6 {[%clk 0:02:51.3]}
11. Rd1 {[%clk 0:02:55.9]} 11... Qc7 {[%clk 0:02:42.7]} 12. c4 {[%clk
0:02:48.1]} 12... Nf4 {[%clk 0:02:33.4]} 13. Bxf4 {[%clk 0:02:47.1]} 13... Qxf4
{[%clk 0:02:34.8]} 14. g3 {[%clk 0:02:40.8]} 14... Qc7 {[%clk 0:02:28.7]} 15.
Rac1 {[%clk 0:02:39.2]} 15... e5 {[%clk 0:02:16.4]} 16. Nc3 {[%clk 0:02:36.4]}
16... Bg4 {[%clk 0:01:58.9]} 17. Nd5 {[%clk 0:02:32.2]} 17... Qd8 {[%clk
0:01:59.3]} 18. Ne3 {[%clk 0:02:28.2]} 18... Nd4 {[%clk 0:01:53.1]} 19. Nxg4
{[%clk 0:02:09.5]} 19... Nxe2+ {[%clk 0:01:53.7]} 20. Bxe2 {[%clk 0:02:10.9]}
20... Qa5 {[%clk 0:01:48.5]} 21. Ngxe5 {[%clk 0:02:10.3]} 21... Rfd8 {[%clk
0:01:33.9]} 22. a3 {[%clk 0:02:06.4]} 22... Bf6 {[%clk 0:01:28.5]} 23. Nd3
{[%clk 0:02:03.7]} 23... Re8 {[%clk 0:01:21.2]} 24. Bf1 {[%clk 0:02:03.6]} 24...
Rad8 {[%clk 0:01:20.3]} 25. Nf4 {[%clk 0:02:00.7]} 25... Bxb2 {[%clk 0:01:15.5]}
26. Rxd8 {[%clk 0:02:00.8]} 26... Rxd8 {[%clk 0:01:14]} 27. Rb1 {[%clk
0:02:01.6]} 27... Qxa3 {[%clk 0:01:13.5]} 28. Ne1 {[%clk 0:01:55.8]} 28... Qa2
{[%clk 0:01:07.4]} 29. Bd3 {[%clk 0:01:53.6]} 29... Rxd3 {[%clk 0:01:06]} 30.
Rxb2 {[%clk 0:01:55]} 30... Rxg3+ {[%clk 0:01:03.6]} 31. hxg3 {[%clk 0:01:52]}
31... Qxb2 {[%clk 0:01:04.5]} 32. Ned3 {[%clk 0:01:52.6]} 32... Qb1+ {[%clk
0:01:04.5]} 33. Kg2 {[%clk 0:01:52.9]} 33... a5 {[%clk 0:01:05.9]} 34. Nc5
{[%clk 0:01:51.9]} 34... b6 {[%clk 0:01:05.1]} 35. Nd7 {[%clk 0:01:50.3]} 35...
a4 {[%clk 0:01:04.7]} 36. Nd5 {[%clk 0:01:51]} 36... a3 {[%clk 0:01:02.5]} 37.
N7xb6 {[%clk 0:01:48.9]} 37... a2 {[%clk 0:01:02]} 38. Nc3 {[%clk 0:01:50.3]}
38... a1=Q {[%clk 0:00:56.8]} 39. Nxb1 {[%clk 0:01:50.9]} 39... Qxb1 {[%clk
0:00:58.3]} 40. Nd5 {[%clk 0:01:49.2]} 40... Qe4+ {[%clk 0:00:57.9]} 41. f3
{[%clk 0:01:49.9]} 41... Qxc4 {[%clk 0:00:59.4]} 42. Ne3 {[%clk 0:01:51.3]}
42... Qa2+ {[%clk 0:01:00]} 43. Kh3 {[%clk 0:01:51.8]} 43... g6 {[%clk
0:01:01.4]} 44. Ng4 {[%clk 0:01:53.7]} 44... f5 {[%clk 0:01:01.3]} 45. Nh2
{[%clk 0:01:50.9]} 45... Qf2 {[%clk 0:00:58.1]} 46. g4 {[%clk 0:01:52.8]} 46...
f4 {[%clk 0:00:57.1]} 47. Nf1 {[%clk 0:01:52.6]} 47... Qxf1+ {[%clk 0:00:57]}
48. Kh4 {[%clk 0:01:54.5]} 48... Kg7 {[%clk 0:00:53.8]} 49. Kg5 {[%clk
0:01:56.4]} 49... Qc4 {[%clk 0:00:52.1]} 50. Kh4 {[%clk 0:01:57]} 50... h6
{[%clk 0:00:51.2]} 51. g5 {[%clk 0:01:58.2]} 51... Qd5 {[%clk 0:00:49.4]} 52.
Kh3 {[%clk 0:01:57.7]} 52... Qxg5 {[%clk 0:00:47.7]} 53. Kh2 {[%clk 0:01:59.6]}
53... Kf6 {[%clk 0:00:48.5]} 54. Kh1 {[%clk 0:02:01.4]} 54... Ke5 {[%clk
0:00:49.8]} 55. Kh2 {[%clk 0:02:03.3]} 55... Kd4 {[%clk 0:00:51.1]} 56. Kh1
{[%clk 0:02:04.9]} 56... Ke3 {[%clk 0:00:52.3]} 57. Kh2 {[%clk 0:02:06.8]} 57...
Kf2 {[%clk 0:00:53.5]} 58. Kh3 {[%clk 0:02:08.7]} 58... Qg3# {[%clk 0:00:50.1]}
0-1